bitfinex-derivatives/quotes_SOLF0:USTF0_20250623
["timestamp","ask_amount","ask_price","bid_price","bid_amount"]
[1750659552265,43.91149437,134.11,134.06,11.62588427]
[1750659552266,43.91149437,134.11,134.06,6.90274777]
[1750659552465,43.91149437,134.11,134.07,6.90274777]
[1750659552762,5.83149437,134.09,134.07,6.90274777]
[1750659552967,5.83149437,134.09,134.06,6.90274777]
[1750659553164,5.83149437,134.09,134.05,6.90274777]
[1750659553672,38.08,134.11,134.05,6.90274777]
[1750659553868,5.83149437,134.09,134.05,6.90274777]
[1750659554666,7.4562,134.08,134.05,14.36004777]
[1750659559272,7.4562,134.08,134.06,7.457]
[1750659560077,13.28709437,134.09,134.06,7.457]
[1750659560569,5.83149437,134.09,134.05,14.36014777]
[1750659560872,7.4562,134.08,134.05,14.36014777]
[1750659565584,7.4562,134.08,134.05,7.4574]
[1750659570680,13.28699437,134.09,134.06,7.4569]
[1750659571785,43.91149437,134.11,134.06,6.90274777]
[1750659572082,43.91149437,134.11,134.05,6.90274777]
[1750659572281,7.4557,134.09,134.06,7.457]
[1750659573384,43.91149437,134.11,134.05,6.90274777]
[1750659573586,38.08,134.11,134.05,6.90274777]
[1750659573785,43.91149437,134.11,134.05,6.90274777]
[1750659573985,43.91149437,134.11,134.09,7.4553]
[1750659574191,38.08,134.11,134.06,6.90274777]
[1750659574382,38.08,134.11,134.07,12.73424214]
[1750659574583,38.08,134.11,134.1,7.4548]
[1750659574887,7.4534,134.13,134.1,7.4548]
[1750659575385,695.22429437,134.14,134.1,7.4548]
[1750659575596,12.20321994,134.13,134.11,7.4541]
[1750659575784,687.77149437,134.14,134.11,7.4541]
[1750659576083,12.20303026,134.13,134.11,7.4541]
[1750659576284,687.77149437,134.14,134.11,7.4541]
[1750659576487,5.84271504,134.13,134.11,7.4541]
[1750659576685,687.77149437,134.14,134.09,6.90274777]
[1750659576982,5.843031,134.13,134.09,6.90274777]
[1750659577188,687.77149437,134.14,134.11,7.4539]
[1750659577390,5.84303101,134.13,134.11,7.4539]
[1750659577589,687.77149437,134.14,134.08,6.90274777]
[1750659577788,12.18678464,134.13,134.08,6.90274777]
[1750659578088,687.77149437,134.14,134.08,6.90274777]
[1750659578386,12.18678798,134.13,134.08,6.90274777]
[1750659578589,687.77149437,134.14,134.08,6.90274777]
[1750659578786,19.63956425,134.13,134.1,7.4547]
[1750659578988,7.4532,134.13,134.1,7.4547]
[1750659580187,695.22429437,134.14,134.1,7.4547]
[1750659580890,7.4532,134.13,134.1,7.4547]
[1750659581485,7.4532,134.13,134.08,6.90274777]
[1750659581689,13.28539437,134.12,134.09,7.4551]
[1750659582689,13.28539437,134.12,134.08,14.35844777]
[1750659582890,7.4543,134.11,134.08,14.35844777]
[1750659583293,5.83149437,134.12,134.07,7.4563]
[1750659583492,50.05198523,134.11,134.07,7.4563]
[1750659583792,181.2,134.11,134.07,7.4563]
[1750659583993,13.28659437,134.1,134.07,7.4563]
[1750659584593,13.28659437,134.1,134.06,14.35954777]
[1750659585093,12.19292799,134.09,134.04,12.73424214]
[1750659585292,5.83149437,134.1,134.04,12.73424214]
[1750659585493,7.4559,134.08,134.05,7.4573]
[1750659585797,5.83149437,134.1,134.04,6.90274777]
[1750659585988,7.4563,134.08,134.04,14.36064777]
[1750659586984,7.4563,134.08,134.04,6.90274777]
[1750659587190,7.4563,134.08,134.05,7.4576]
[1750659587595,7.4563,134.08,134.04,14.36064777]
[1750659590601,7.4563,134.08,134.05,7.4576]
[1750659591196,7.4563,134.08,134.04,14.36064777]
[1750659591692,13.28779437,134.08,134.04,14.36064777]
[1750659591903,7.4569,134.07,134.03,14.00214777]
[1750659592103,5.83149437,134.08,134.03,14.00214777]
[1750659592504,7.4566,134.07,134.04,7.4581]
[1750659592707,7.4566,134.07,134.03,14.00214777]
[1750659592907,7.4571,134.06,134.03,6.90274777]
[1750659593106,37.82,134.07,134.03,6.90274777]
[1750659593606,37.82,134.07,134.04,7.4578]
[1750659594306,45.2766,134.07,134.03,14.36124777]
[1750659594506,37.82,134.07,134.03,14.36124777]
[1750659594702,13.28879437,134.06,134.03,6.90274777]
[1750659595207,13.28879437,134.06,134.02,14.36164777]
[1750659595997,5.83149437,134.06,134.02,6.90274777]
[1750659596201,5.83149437,134.06,134.01,6.90274777]
[1750659596608,7.4593,134.02,133.99,6.90274777]
[1750659596800,43.65149437,134.03,133.99,6.90274777]
[1750659597607,51.11069437,134.03,133.99,7.4606]
[1750659597910,43.65149437,134.03,133.99,7.4606]
[1750659598203,7.4599,134.01,133.98,6.90274777]
[1750659598404,7.4599,134.01,133.97,39.04188991]
[1750659599301,43.65149437,134.03,133.97,39.04188991]
[1750659599508,37.82,134.03,133.98,12.73424214]
[1750659599807,37.82,134.03,133.99,6.90274777]
[1750659600010,37.82,134.06,134.0,5.83149437]
[1750659600304,37.82,134.06,134.01,6.90274777]
[1750659600508,37.82,134.06,134.0,12.73424214]
[1750659600704,43.65149437,134.06,134.0,5.83149437]
[1750659600900,43.65149437,134.06,133.99,12.73424214]
[1750659601808,5.83149437,134.04,133.99,6.90274777]
[1750659601999,7.4587,134.03,133.99,6.90274777]
[1750659602303,5.83149437,134.04,133.99,6.90274777]
[1750659602701,13.28979437,134.04,134.01,7.4598]
[1750659603409,7.4583,134.04,134.0,7.4602]
[1750659605500,13.28919437,134.05,134.01,7.4596]
[1750659606005,5.83149437,134.05,134.01,7.4596]
[1750659606711,7.4585,134.04,134.01,7.4596]
[1750659607812,13.28929437,134.05,134.02,7.4589]
[1750659608414,7.4581,134.04,134.01,7.4595]
[1750659609113,13.28929437,134.05,134.02,7.4592]
[1750659609614,13.28929437,134.05,134.01,7.4596]
[1750659610109,13.28929437,134.05,133.99,6.90274777]
[1750659610310,13.28929437,134.05,134.01,7.4593]
[1750659611014,7.4578,134.05,134.01,7.4593]
[1750659611210,51.10879437,134.06,134.0,5.83149437]
[1750659611515,43.65149437,134.06,133.99,12.71551266]
[1750659612718,7.4584,134.04,134.0,7.4601]
[1750659613620,7.4589,134.03,134.0,7.4601]
[1750659613916,43.65149437,134.06,134.0,7.4601]
[1750659614116,7.4584,134.04,134.0,7.4601]
[1750659614818,7.4577,134.05,134.01,7.4597]
[1750659615115,37.82,134.06,134.01,5.83149437]
[1750659615818,45.2773,134.06,134.02,7.4588]
[1750659616619,7.4576,134.05,134.02,7.4588]
[1750659616919,7.4576,134.05,134.01,7.4596]
[1750659624925,7.4585,134.04,134.01,7.4596]
[1750659625624,37.82,134.06,134.02,7.4592]
[1750659625824,37.82,134.06,134.01,6.88401829]
[1750659626025,45.2773,134.06,134.02,7.4589]
[1750659626828,7.4576,134.05,134.02,7.4589]
[1750659628031,45.2773,134.06,134.02,7.4589]
[1750659629024,45.2773,134.06,134.02,14.34291829]
[1750659630231,37.82,134.06,134.02,6.88401829]
[1750659630830,37.82,134.06,134.03,7.4584]
[1750659631231,45.2774,134.06,134.02,6.88401829]
[1750659631727,37.82,134.06,134.03,7.4583]
[1750659631928,37.82,134.06,134.03,6.88401829]
[1750659632831,37.82,134.06,134.05,7.4576]
[1750659634541,6.3464712,134.08,134.04,6.88401829]
[1750659634735,37.82,134.12,134.06,6.88401829]
[1750659634935,7.4551,134.1,134.06,14.34091829]
[1750659635137,12.21363508,134.09,134.06,7.4569]
[1750659635444,5.83149437,134.09,134.05,6.88401829]
[1750659635638,5.868944,134.08,134.04,6.88401829]
[1750659635830,37.82,134.08,134.04,6.88401829]
[1750659636041,37.82,134.08,134.04,14.34181829]
[1750659636233,5.8685654,134.07,134.03,12.71551266]
[1750659636545,37.82,134.08,134.03,6.88401829]
[1750659636842,12.21388951,134.07,134.03,6.88401829]
[1750659637135,37.82,134.08,134.03,6.88401829]
[1750659637343,37.82,134.08,134.03,7.4585]
[1750659637344,25.50444719,134.07,134.03,7.4585]
[1750659637542,12.21635282,134.06,134.03,7.4585]
[1750659637837,13.28809437,134.07,134.03,7.4585]
[1750659638042,12.2177604,134.06,134.03,7.4585]
[1750659638338,7.4576,134.05,134.02,6.88401829]
[1750659638538,7.4576,134.05,134.01,14.34361829]
[1750659640042,7.4576,134.05,134.02,7.4591]
[1750659640238,7.4576,134.05,134.02,14.34311829]
[1750659641642,7.4576,134.05,134.02,7.4591]
[1750659643748,7.4573,134.06,134.02,7.4591]
[1750659643937,5.83149437,134.07,134.02,6.88401829]
[1750659644447,7.4573,134.06,134.02,14.34281829]
[1750659645945,7.4573,134.06,134.03,7.4587]
[1750659647849,5.83149437,134.07,134.03,7.4587]
[1750659647850,13.28809437,134.07,134.03,7.4587]
[1750659648250,5.83149437,134.07,134.03,7.4587]
[1750659648651,7.4573,134.06,134.02,14.34301829]
[1750659649144,7.4579,134.05,134.02,6.88401829]
[1750659649348,7.4579,134.05,134.02,14.34321829]
[1750659651350,7.4573,134.06,134.03,7.4587]
[1750659651552,5.83149437,134.07,134.02,6.88401829]
[1750659651752,7.4575,134.06,134.03,7.4586]
[1750659652250,5.83149437,134.07,134.02,6.88401829]
[1750659652453,7.4575,134.06,134.02,14.34281829]
[1750659652951,45.2575,134.06,134.02,14.34281829]
[1750659653349,12.23102142,134.05,134.03,7.4587]
[1750659653552,37.8,134.06,134.02,6.88401829]
[1750659653853,12.24362251,134.05,134.03,7.4584]
[1750659654049,37.8,134.06,134.03,7.4584]
[1750659654251,12.26490223,134.05,134.03,7.4584]
[1750659654551,37.8,134.06,134.03,7.4584]
[1750659654854,12.26490224,134.05,134.03,7.4584]
[1750659655051,37.8,134.06,134.03,7.4584]
[1750659655247,5.89766171,134.05,134.03,7.4584]
[1750659655452,37.8,134.06,134.03,7.4584]
[1750659655652,12.26469138,134.05,134.03,7.4584]
[1750659655855,37.8,134.06,134.03,7.4584]
[1750659656054,12.2650279,134.05,134.03,14.34241829]
[1750659656353,37.8,134.06,134.03,14.34241829]
[1750659656548,12.2650279,134.05,134.03,14.34241829]
[1750659656757,37.8,134.06,134.04,7.4581]
[1750659656956,12.2650597,134.05,134.02,6.88401829]
[1750659657156,37.8,134.06,134.04,7.4581]
[1750659657360,12.26482916,134.05,134.04,7.4581]
[1750659658053,5.89772669,134.05,134.04,7.4581]
[1750659658260,12.26503796,134.05,134.04,7.4581]
[1750659658652,5.89772669,134.05,134.04,7.4581]
[1750659658960,12.26503795,134.05,134.04,7.4581]
[1750659659160,37.8,134.06,134.04,7.4581]
[1750659659354,37.8,134.06,134.05,7.4576]
[1750659659554,5.89796167,134.06,134.05,11.19491901]
[1750659659756,41.53731901,134.11,134.05,3.73731901]
[1750659660061,9.21332627,134.1,134.07,11.19181701]
[1750659660261,6.36666487,134.09,134.07,7.4564]
[1750659660559,45.2546,134.11,134.07,7.4564]
[1750659660859,9.21260821,134.1,134.07,7.4564]
[1750659661160,6.36157809,134.09,134.07,7.4564]
[1750659661360,45.2546,134.11,134.07,7.4564]
[1750659661560,37.8,134.15,134.09,5.83500829]
[1750659661855,9.20392381,134.14,134.09,6.90714404]
[1750659662060,9.20380521,134.13,134.1,7.4548]
[1750659662260,6.36028879,134.12,134.1,7.4548]
[1750659662459,2.84347024,134.14,134.1,7.4548]
[1750659662655,6.35990925,134.13,134.1,7.4548]
[1750659662858,6.35990925,134.12,134.11,7.4543]
[1750659663058,2.84337268,134.14,134.11,7.4543]
[1750659663262,6.35981458,134.13,134.11,7.4543]
[1750659663459,45.2524,134.15,134.11,7.4543]
[1750659663959,8.86942681,134.14,134.11,7.4543]
[1750659664160,45.2524,134.15,134.11,7.4543]
[1750659664564,7.4527,134.14,134.11,7.4543]
[1750659664758,7.4527,134.14,134.1,7.4545]
[1750659665066,37.8,134.15,134.1,7.4545]
[1750659665365,7.4529,134.14,134.1,7.4545]
[1750659665957,7.4529,134.14,134.11,7.4542]
[1750659666164,13.46344314,134.14,134.11,7.4542]
[1750659666464,7.4529,134.14,134.11,7.4542]
[1750659666964,7.4533,134.13,134.1,7.4546]
[1750659670161,43.63239599,134.15,134.09,5.83239599]
[1750659670460,7.4529,134.14,134.09,5.83239599]
[1750659671265,7.4533,134.13,134.09,5.83239599]
[1750659671767,13.25564633,134.14,134.09,5.83239599]
[1750659671966,7.4529,134.14,134.1,7.4544]
[1750659672861,7.4532,134.13,134.09,13.28749599]
[1750659673065,37.8,134.15,134.09,5.83239599]
[1750659673465,37.8,134.15,134.1,7.4546]
[1750659673966,37.8,134.15,134.08,5.83239599]
[1750659674166,5.83239599,134.14,134.08,5.83239599]
[1750659674365,5.99725089,134.16,134.08,5.83239599]
[1750659674568,5.79898261,134.19,134.13,5.82975625]
[1750659674767,64.10657625,134.2,134.13,5.82975625]
[1750659674964,64.10657625,134.2,134.17,7.4509]
[1750659675265,11.62632063,134.19,134.11,5.82975625]
[1750659675572,13.28095625,134.17,134.13,7.4529]
[1750659675867,37.78,134.16,134.13,7.4529]
[1750659676069,37.78,134.16,134.12,7.4535]
[1750659677070,7.4521,134.15,134.12,7.4535]
[1750659677262,37.78,134.16,134.12,7.4535]
[1750659677462,43.57095217,134.16,134.12,7.4535]
[1750659677869,45.2319,134.16,134.12,7.4535]
[1750659678262,51.02279528,134.16,134.12,7.4535]
[1750659678861,37.78,134.16,134.12,7.4535]
[1750659679067,37.78,134.16,134.07,52.14284404]
[1750659679068,5.82975625,134.15,134.07,13.28545625]
[1750659679665,5.82975625,134.14,134.1,7.4545]
[1750659680372,13.28285625,134.14,134.1,7.4545]
[1750659680974,13.28285625,134.14,134.11,7.4542]
[1750659681675,7.4532,134.13,134.1,7.4546]
[1750659682163,7.4537,134.12,134.09,7.4551]
[1750659682364,45.2137,134.12,134.09,7.4551]
[1750659682680,7.4543,134.11,134.08,7.4558]
[1750659685975,37.76,134.11,134.08,7.4558]
[1750659686875,37.76,134.11,134.07,7.4563]
[1750659687277,45.2143,134.11,134.07,7.4563]
[1750659688578,45.2143,134.11,134.07,14.36344404]
[1750659688880,7.4548,134.1,134.07,14.36344404]
[1750659689279,7.4548,134.1,134.07,7.4563]
[1750659689776,45.2145,134.11,134.07,7.4563]
[1750659690281,37.76,134.11,134.08,7.4558]
[1750659690977,45.2143,134.11,134.07,7.4562]
[1750659692182,37.76,134.11,134.06,7.4568]
[1750659692377,5.82975625,134.1,134.06,7.4568]
[1750659692685,5.82975625,134.1,134.04,4.8385]
[1750659692887,5.82975625,134.1,134.04,2.4412]
[1750659693280,11.63416325,134.1,134.04,2.4412]
[1750659693681,7.4559,134.08,134.05,7.4573]
[1750659693884,37.78,134.07,134.02,8.14935625]
[1750659694683,45.2367,134.07,134.04,7.4578]
[1750659698395,7.457,134.06,134.02,8.14935625]
[1750659698779,7.457,134.06,134.02,15.60825625]
[1750659699790,37.78,134.07,134.01,7.4595]
[1750659700392,5.82975625,134.06,134.02,7.4592]
[1750659700989,7.4579,134.05,134.02,7.4592]
[1750659701187,5.82975625,134.06,134.02,7.4592]
[1750659701388,5.82975625,134.06,134.0,9.22004404]
[1750659701583,5.82975625,134.04,133.99,2.3254]
[1750659701788,37.78,134.03,133.99,9.7859]
[1750659702397,45.2389,134.03,133.99,9.7859]
[1750659702896,45.2389,134.03,133.96,6.90714404]
[1750659702897,7.4602,134.01,133.96,6.90714404]
[1750659703491,7.4602,134.01,133.97,7.4616]
[1750659703692,7.4602,134.01,133.96,6.90714404]
[1750659703893,37.78,134.03,133.96,6.90714404]
[1750659704094,5.82975625,134.02,133.96,6.90714404]
[1750659704600,13.28945625,134.02,133.96,6.90714404]
[1750659704901,13.28945625,134.02,133.98,7.4611]
[1750659705799,7.4597,134.02,133.98,7.4611]
[1750659705999,13.28945625,134.02,133.98,7.4611]
[1750659706996,7.4599,134.01,133.98,7.4611]
[1750659707198,5.82975625,134.02,133.97,7.4618]
[1750659707602,7.4604,134.0,133.97,7.4618]
[1750659707792,37.78,133.99,133.96,7.4624]
[1750659712302,37.78,133.99,133.97,7.462]
[1750659715609,690.56620153,134.12,133.97,5.82975625]
[1750659715799,37.78,134.05,133.99,5.82975625]
[1750659716002,37.78,134.05,134.01,5.82975625]
[1750659716202,37.78,134.05,134.03,7.4584]
[1750659722408,45.2376,134.05,134.01,5.82975625]
[1750659722608,45.2376,134.05,133.99,5.82975625]
[1750659723104,45.2376,134.05,134.01,7.4595]
[1750659723608,7.4585,134.04,134.0,7.4604]
[1750659724103,37.78,134.05,133.99,5.82975625]
[1750659724505,45.2379,134.05,134.01,7.4597]
[1750659728715,37.78,134.05,134.02,7.4591]
[1750659728919,37.78,134.05,133.99,5.82975625]
[1750659729618,37.78,134.05,134.03,7.4585]
[1750659730615,37.78,134.05,133.99,12.74826984]
[1750659731514,37.78,134.05,134.02,7.4589]
[1750659732916,45.2376,134.05,134.02,7.4589]
[1750659733120,43.6211258,134.05,133.97,19.95496984]
[1750659733511,43.6211258,134.05,133.99,7.4609]
[1750659733715,5.8411258,134.03,133.97,17.52856984]
[1750659734117,5.8411258,134.03,133.97,11.68744404]
[1750659734414,5.8411258,134.03,133.97,4.7803]
[1750659734718,5.8411258,134.03,133.97,11.66954745]
[1750659735713,7.4593,134.02,133.99,7.4606]
[1750659737319,13.3001258,134.03,133.99,7.4606]
[1750659739021,5.8411258,134.03,134.0,7.4601]
[1750659741211,7.4584,134.04,134.01,7.4597]
[1750659742423,53.4736258,134.05,134.02,7.4592]
[1750659742615,53.4736258,134.05,134.0,12.73037325]
[1750659742616,37.78,134.05,134.0,12.73037325]
[1750659742918,37.78,134.05,134.02,7.4588]
[1750659744219,37.78,134.05,134.03,7.4587]
[1750659745325,37.78,134.05,134.01,6.88924745]
[1750659746925,37.78,134.05,134.03,7.4586]
[1750659747327,37.78,134.05,134.02,7.4591]
[1750659749330,45.2377,134.05,134.02,7.4591]
[1750659749527,45.2377,134.05,134.01,14.34894745]
[1750659749727,45.2377,134.05,134.01,7.4597]
[1750659751133,37.78,134.05,134.02,7.4592]
[1750659754142,37.78,134.05,134.03,7.4586]
[1750659757931,37.78,134.05,134.04,7.4581]
[1750659758933,20.50026,134.06,134.05,7.4576]
[1750659760029,20.50026,134.06,134.04,7.4579]
[1750659760336,20.50026,134.06,134.03,6.90224919]
[1750659760543,20.50026,134.06,134.03,14.36054919]
[1750659762842,58.26026,134.06,134.03,14.36054919]
[1750659765243,65.71726,134.06,134.03,14.36054919]
[1750659765547,65.71726,134.06,134.03,6.90224919]
[1750659766450,58.26026,134.06,134.03,14.36094919]
[1750659766651,58.26026,134.06,134.03,7.4587]
[1750659766848,65.71736,134.06,134.03,7.4587]
[1750659767249,58.26026,134.06,134.03,7.4587]
[1750659769151,58.26026,134.06,134.03,14.36094919]
[1750659770354,58.26026,134.06,134.04,7.4579]
[1750659770956,58.26026,134.06,134.03,14.36074919]
[1750659772353,58.26026,134.06,134.04,7.458]
[1750659773356,58.26026,134.06,134.05,7.4576]
[1750659775154,58.26026,134.06,134.04,7.4579]
[1750659780362,58.26026,134.06,134.05,7.4576]
[1750659780661,58.26026,134.06,134.03,12.74143135]
[1750659780864,58.26026,134.06,134.04,7.4579]
[1750659781360,58.26026,134.06,134.05,7.4576]
[1750659783662,58.26026,134.06,134.04,6.90224919]
[1750659784262,58.26026,134.06,134.04,10.639234]
[1750659784662,58.26026,134.06,134.05,7.4576]
[1750659788762,58.26026,134.06,134.04,14.36024919]
[1750659791568,58.26026,134.06,134.04,7.458]
[1750659792969,61.99724481,134.06,134.04,7.458]
[1750659793969,61.99724481,134.06,134.04,14.36024919]
[1750659794975,58.26026,134.06,134.04,14.36024919]
[1750659795272,61.99724481,134.06,134.05,7.4576]
[1750659795670,61.99724481,134.06,134.04,6.90224919]
[1750659795970,58.26026,134.06,134.04,6.90224919]
[1750659796375,61.99724481,134.06,134.04,14.36014919]
[1750659796675,3.73698481,134.05,134.03,6.90224919]
[1750659796864,3.73698481,134.04,134.02,14.36114919]
[1750659797266,3.73698481,134.04,134.02,7.4589]
[1750659797971,3.73698481,134.04,134.01,6.90224919]
[1750659797972,11.19738885,134.04,134.01,14.36174919]
[1750659798173,3.73908885,134.03,134.0,6.90224919]
[1750659798368,5.84344719,134.04,134.0,6.90224919]
[1750659799377,5.84344719,134.04,134.0,7.4601]
[1750659799765,7.4588,134.03,134.0,7.4601]
[1750659801365,13.30174719,134.04,134.01,7.4597]
[1750659802777,7.4587,134.03,134.01,7.4597]
[1750659802978,7.4587,134.03,134.0,7.4601]
[1750659804178,7.4587,134.03,134.01,7.4598]
[1750659804381,13.30184719,134.04,134.01,7.4598]
[1750659805470,7.4587,134.03,134.01,7.4598]
[1750659805669,5.85345703,134.02,134.01,7.4598]
[1750659806172,7.4587,134.03,134.01,7.4598]
[1750659809484,7.4587,134.03,134.0,7.4601]
[1750659810187,13.30184719,134.04,134.01,7.4597]
[1750659810875,7.4584,134.04,134.01,7.4597]
[1750659811076,13.30184719,134.04,134.01,7.4597]
[1750659811979,5.84344719,134.04,134.02,7.4591]
[1750659812185,58.26026,134.06,134.01,6.90224919]
[1750659812579,58.26026,134.06,134.03,7.4582]
[1750659816391,5.85103322,134.05,134.03,7.4582]
[1750659816583,58.26026,134.06,134.03,7.4582]
[1750659816784,58.26026,134.06,134.02,12.74372199]
[1750659817087,45.91128628,134.14,134.05,5.83708628]
[1750659817286,45.91128628,134.14,134.08,5.83708628]
[1750659817487,7.4533,134.13,134.08,13.29268628]
[1750659817888,7.4533,134.13,134.08,5.83708628]
[1750659818084,7.4533,134.13,134.09,7.455]
[1750659818991,7.4538,134.12,134.09,7.455]
[1750659819987,5.83708628,134.1,134.04,6.91387963]
[1750659820178,37.66,134.09,134.04,6.91387963]
[1750659821093,45.1154,134.09,134.05,7.4573]
[1750659822288,37.66,134.09,134.04,6.91387963]
[1750659822594,5.83708628,134.07,134.01,6.91387963]
[1750659823691,13.29378628,134.07,134.03,7.4584]
[1750659826296,13.29378628,134.07,134.04,7.458]
[1750659828498,43.49708628,134.09,134.01,12.75096591]
[1750659828792,37.66,134.09,134.04,6.91387963]
[1750659829099,37.66,134.09,134.07,7.4562]
[1750659831191,37.66,134.09,134.06,7.4567]
[1750659831897,37.66,134.09,134.05,9.8477]
[1750659832197,45.1156,134.09,134.05,7.4574]
[1750659832398,5.83708628,134.08,134.04,2.4357]
[1750659832601,5.83708628,134.08,134.03,6.91387963]
[1750659832801,5.83708628,134.08,134.02,12.75096591]
[1750659833201,7.4566,134.07,134.03,7.4583]
[1750659834001,13.29328628,134.08,134.04,7.4581]
[1750659835702,7.4565,134.07,134.04,7.4581]
[1750659836301,13.29328628,134.08,134.04,7.4581]
[1750659837701,7.4567,134.07,134.04,7.4581]
[1750659840410,5.83708628,134.08,134.02,5.83708628]
[1750659840708,5.83708628,134.08,134.02,12.75096591]
[1750659841101,13.29298628,134.08,134.05,7.4574]
[1750659841811,13.29298628,134.08,134.04,7.4578]
[1750659843013,7.4565,134.07,134.04,7.4578]
[1750659844018,45.0765,134.07,134.04,7.4578]
[1750659845413,7.4571,134.06,134.03,7.4586]
[1750659846513,50.91378628,134.07,134.03,7.4586]
[1750659846716,43.45708628,134.07,134.02,7.459]
[1750659847317,5.83708628,134.03,133.98,6.91387963]
[1750659847516,37.62,134.02,133.97,6.91387963]
[1750659847716,37.62,134.02,133.98,7.4612]
[1750659847717,5.83708628,134.01,133.98,7.4612]
[1750659848722,13.29708628,134.01,133.98,7.4612]
[1750659849116,5.83708628,134.01,133.96,2.4956]
[1750659849421,7.4606,134.0,133.94,12.75096591]
[1750659850023,5.83708628,133.99,133.96,7.4622]
[1750659851012,37.62,133.98,133.93,11.89727963]
[1750659851319,5.83708628,133.97,133.93,2.5148]
[1750659851520,37.62,133.98,133.93,15.26576591]
[1750659852022,37.62,133.98,133.95,7.4628]
[1750659852722,37.62,133.98,133.96,7.4626]
[1750659854823,37.62,133.98,133.97,7.462]
[1750659855024,37.62,133.98,133.93,8.35188628]
[1750659855923,43.45708628,133.98,133.93,2.5148]
[1750659856718,43.45708628,133.98,133.95,7.4629]
[1750659858627,50.91858628,133.98,133.94,7.4635]
[1750659860031,43.45708628,133.98,133.92,10.75658628]
[1750659860236,5.83708628,133.96,133.92,2.4956]
[1750659860638,50.91888628,133.98,133.94,7.4637]
[1750659860839,50.91888628,133.98,133.92,2.4956]
[1750659861029,43.45708628,133.98,133.92,2.4956]
[1750659861334,5.83708628,133.97,133.92,2.4956]
[1750659861727,13.29918628,133.97,133.93,7.4639]
[1750659862837,5.83708628,133.97,133.94,7.4636]
[1750659864427,13.29918628,133.97,133.93,7.4641]
[1750659865244,7.4626,133.96,133.92,7.4646]
[1750659865443,5.83708628,133.97,133.92,7.4646]
[1750659865631,5.83708628,133.97,133.9,8.23478628]
[1750659866530,5.83708628,133.97,133.9,2.3977]
[1750659866732,43.45708628,133.98,133.9,8.23478628]
[1750659867041,7.4621,133.97,133.93,7.4639]
[1750659867437,43.45708628,133.98,133.9,15.14866591]
[1750659867644,43.45708628,133.98,133.92,5.83708628]
[1750659867842,37.62,133.98,133.92,5.83708628]
[1750659868045,37.62,133.98,133.93,2.4948]
[1750659868344,37.62,133.98,133.96,7.4624]
[1750659875249,37.62,133.98,133.93,8.33188628]
[1750659875446,37.62,134.01,133.97,5.83708628]
[1750659876152,0.59491,134.05,133.99,5.83708628]
[1750659876153,687.67708628,134.04,133.99,5.83708628]
[1750659876352,689.2985,134.04,134.0,7.46]
[1750659879254,7.4587,134.03,134.0,7.46]
[1750659879558,5.83708628,134.03,133.95,9.34107963]
[1750659879754,7.4602,134.01,133.96,5.83708628]
[1750659879955,5.83708628,134.01,133.95,8.26428628]
[1750659881553,7.4607,134.0,133.96,7.4624]
[1750659881855,681.82,134.04,133.98,5.83708628]
[1750659882054,689.2784,134.04,134.0,7.46]
[1750659882257,45.0584,134.04,134.0,7.46]
[1750659883554,37.6,134.04,134.01,7.4597]
[1750659884756,45.0582,134.04,134.0,7.4601]
[1750659886456,45.0582,134.04,134.01,7.4596]
[1750659887758,37.6,134.04,134.01,7.4596]
[1750659888247,37.6,134.04,133.98,5.83708628]
[1750659888248,37.6,134.04,133.98,12.75096591]
[1750659888553,37.6,134.04,134.02,7.4592]
[1750659889058,37.6,134.04,134.03,7.4587]
[1750659889261,37.6,134.04,134.0,5.83708628]
[1750659889454,0.59491,134.05,134.0,5.83708628]
[1750659889757,0.59491,134.05,134.02,7.4588]
[1750659890059,0.59491,134.05,134.0,12.75096591]
[1750659890254,0.59491,134.05,134.03,7.4587]
[1750659892160,37.6,134.1,134.04,5.83708628]
[1750659892551,5.83708628,134.09,134.02,12.75096591]
[1750659893059,5.83708628,134.09,134.05,7.4572]